{"text_format":"3","workbook":"xlsx","n_sheets":1,"sheets":["РІЧНИЙ ТАБЕЛЬ ОБЛІКУ ЧАСУ"],"not_rendered":{"defined_names":2},"read":"whole","date_system":"1900"}

{"sheet":"РІЧНИЙ ТАБЕЛЬ ОБЛІКУ ЧАСУ","index":0,"n_rows":140,"n_cols":12,"rows_kept":140,"merged":[[0,1,1,11],[2,6,2,7],[2,8,2,9],[5,1,5,11],[39,1,39,11],[73,1,73,11],[107,1,107,11]]}
[null,"Картка обліку часу працівника"]
[]
[null,"Ім’я працівника:",null,"Електронна пошта:",null,null,"Підсумки року:"]
[null,"Керівник:",null,"Телефон:",null,null,"Планові години:",{"$f":"SUM(C16,C27,C38,C50,C61,C72,C84,C95,C106,C118,C129,C140)","v":0},"Понаднормові години:",{"$f":"SUM(F16,F27,F38,F50,F61,F72,F84,F95,F106,F118,F129,F140)","v":0},"Підсумок:",{"$f":"SUM(H4:J4)","v":0}]
[]
[null,"Січень, лютий, березень      Картка обліку часу працівника: за день, за тиждень, за місяць, за рік"]
[null,"Січень","Тиждень 1","Понаднормові","Тиждень 2","Понаднормові ","Тиждень 3","Понаднормові  ","Тиждень 4","Понаднормові   ","Тиждень 5","Понаднормові    "]
[null,"Понеділок"]
[null,"Вівторок"]
[null,"Середа"]
[null,"Четвер"]
[null,"П’ятниця"]
[null,"Субота"]
[null,"Неділя"]
[null,"підсумок годин за тиждень",{"$f":"SUBTOTAL(109,Січень[Тиждень 1])","v":0},{"$f":"SUBTOTAL(109,Січень[Понаднормові])","v":0},{"$f":"SUBTOTAL(109,Січень[Тиждень 2])","v":0},{"$f":"SUBTOTAL(109,Січень[[Понаднормові ]])","v":0},{"$f":"SUBTOTAL(109,Січень[Тиждень 3])","v":0},{"$f":"SUBTOTAL(109,Січень[[Понаднормові  ]])","v":0},{"$f":"SUBTOTAL(109,Січень[Тиждень 4])","v":0},{"$f":"SUBTOTAL(109,Січень[[Понаднормові   ]])","v":0},{"$f":"SUBTOTAL(109,Січень[Тиждень 5])","v":0},{"$f":"SUBTOTAL(109,Січень[[Понаднормові    ]])","v":0}]
[null,"Січ., підсумок: планові",{"$f":"SUM(Січень[[#Totals],[Тиждень 1]],Січень[[#Totals],[Тиждень 2]],Січень[[#Totals],[Тиждень 3]],Січень[[#Totals],[Тиждень 4]],Січень[[#Totals],[Тиждень 5]])","v":0},"Січ., підсумок: понаднормові",null,{"$f":"SUM(Січень[[#Totals],[Понаднормові]],Січень[[#Totals],[Понаднормові ]],Січень[[#Totals],[Понаднормові  ]],Січень[[#Totals],[Понаднормові   ]],Січень[[#Totals],[Понаднормові    ]])","v":0}]
[]
[null,"Лютий","Тиждень 1","Понаднормові","Тиждень 2","Понаднормові ","Тиждень 3","Понаднормові  ","Тиждень 4","Понаднормові   ","Тиждень 5","Понаднормові    "]
[null,"Понеділок"]
[null,"Вівторок"]
[null,"Середа"]
[null,"Четвер"]
[null,"П’ятниця"]
[null,"Субота"]
[null,"Неділя"]
[null,"підсумок годин за тиждень",{"$f":"SUBTOTAL(109,Лютий[Тиждень 1])","v":0},{"$f":"SUBTOTAL(109,Лютий[Понаднормові])","v":0},{"$f":"SUBTOTAL(109,Лютий[Тиждень 2])","v":0},{"$f":"SUBTOTAL(109,Лютий[[Понаднормові ]])","v":0},{"$f":"SUBTOTAL(109,Лютий[Тиждень 3])","v":0},{"$f":"SUBTOTAL(109,Лютий[[Понаднормові  ]])","v":0},{"$f":"SUBTOTAL(109,Лютий[Тиждень 4])","v":0},{"$f":"SUBTOTAL(109,Лютий[[Понаднормові   ]])","v":0},{"$f":"SUBTOTAL(109,Лютий[Тиждень 5])","v":0},{"$f":"SUBTOTAL(109,Лютий[[Понаднормові    ]])","v":0}]
[null,"Лют., підсумок: планові",{"$f":"SUM(Лютий[[#Totals],[Тиждень 1]],Лютий[[#Totals],[Тиждень 2]],Лютий[[#Totals],[Тиждень 3]],Лютий[[#Totals],[Тиждень 4]],Лютий[[#Totals],[Тиждень 5]])","v":0},"Лют., підсумок: понаднормові",null,{"$f":"SUM(Лютий[[#Totals],[Понаднормові]],Лютий[[#Totals],[Понаднормові ]],Лютий[[#Totals],[Понаднормові  ]],Лютий[[#Totals],[Понаднормові   ]],Лютий[[#Totals],[Понаднормові    ]])","v":0}]
[]
[null,"Березень","Тиждень 1","Понаднормові","Тиждень 2","Понаднормові ","Тиждень 3","Понаднормові  ","Тиждень 4","Понаднормові   ","Тиждень 5","Понаднормові    "]
[null,"Понеділок"]
[null,"Вівторок"]
[null,"Середа"]
[null,"Четвер"]
[null,"П’ятниця"]
[null,"Субота"]
[null,"Неділя"]
[null,"підсумок годин за тиждень",{"$f":"SUBTOTAL(109,Березень[Тиждень 1])","v":0},{"$f":"SUBTOTAL(109,Березень[Понаднормові])","v":0},{"$f":"SUBTOTAL(109,Березень[Тиждень 2])","v":0},{"$f":"SUBTOTAL(109,Березень[[Понаднормові ]])","v":0},{"$f":"SUBTOTAL(109,Березень[Тиждень 3])","v":0},{"$f":"SUBTOTAL(109,Березень[[Понаднормові  ]])","v":0},{"$f":"SUBTOTAL(109,Березень[Тиждень 4])","v":0},{"$f":"SUBTOTAL(109,Березень[[Понаднормові   ]])","v":0},{"$f":"SUBTOTAL(109,Березень[Тиждень 5])","v":0},{"$f":"SUBTOTAL(109,Березень[[Понаднормові    ]])","v":0}]
[null,"Берез., підсумок: планові",{"$f":"SUM(Березень[[#Totals],[Тиждень 1]],Березень[[#Totals],[Тиждень 2]],Березень[[#Totals],[Тиждень 3]],Березень[[#Totals],[Тиждень 4]],Березень[[#Totals],[Тиждень 5]])","v":0},"Берез., підсумок: понаднормові",null,{"$f":"SUM(Березень[[#Totals],[Понаднормові]],Березень[[#Totals],[Понаднормові ]],Березень[[#Totals],[Понаднормові  ]],Березень[[#Totals],[Понаднормові   ]],Березень[[#Totals],[Понаднормові    ]])","v":0}]
[]
[null,"Квітень, травень, червень      Картка обліку часу працівника: за день, за тиждень, за місяць, за рік"]
[null,"Квітень","Тиждень 1","Понаднормові","Тиждень 2","Понаднормові ","Тиждень 3","Понаднормові  ","Тиждень 4","Понаднормові   ","Тиждень 5","Понаднормові    "]
[null,"Понеділок"]
[null,"Вівторок"]
[null,"Середа"]
[null,"Четвер"]
[null,"П’ятниця"]
[null,"Субота"]
[null,"Неділя"]
[null,"підсумок годин за тиждень",{"$f":"SUBTOTAL(109,Квітень[Тиждень 1])","v":0},{"$f":"SUBTOTAL(109,Квітень[Понаднормові])","v":0},{"$f":"SUBTOTAL(109,Квітень[Тиждень 2])","v":0},{"$f":"SUBTOTAL(109,Квітень[[Понаднормові ]])","v":0},{"$f":"SUBTOTAL(109,Квітень[Тиждень 3])","v":0},{"$f":"SUBTOTAL(109,Квітень[[Понаднормові  ]])","v":0},{"$f":"SUBTOTAL(109,Квітень[Тиждень 4])","v":0},{"$f":"SUBTOTAL(109,Квітень[[Понаднормові   ]])","v":0},{"$f":"SUBTOTAL(109,Квітень[Тиждень 5])","v":0},{"$f":"SUBTOTAL(109,Квітень[[Понаднормові    ]])","v":0}]
[null,"Квіт., підсумок: планові",{"$f":"SUM(Квітень[[#Totals],[Тиждень 1]],Квітень[[#Totals],[Тиждень 2]],Квітень[[#Totals],[Тиждень 3]],Квітень[[#Totals],[Тиждень 4]],Квітень[[#Totals],[Тиждень 5]])","v":0},"Квіт., підсумок: понаднормові",null,{"$f":"SUM(Квітень[[#Totals],[Понаднормові]],Квітень[[#Totals],[Понаднормові ]],Квітень[[#Totals],[Понаднормові  ]],Квітень[[#Totals],[Понаднормові   ]],Квітень[[#Totals],[Понаднормові    ]])","v":0}]
[]
[null,"Травень","Тиждень 1","Понаднормові","Тиждень 2","Понаднормові ","Тиждень 3","Понаднормові  ","Тиждень 4","Понаднормові   ","Тиждень 5","Понаднормові    "]
[null,"Понеділок"]
[null,"Вівторок"]
[null,"Середа"]
[null,"Четвер"]
[null,"П’ятниця"]
[null,"Субота"]
[null,"Неділя"]
[null,"підсумок годин за тиждень",{"$f":"SUBTOTAL(109,Травень[Тиждень 1])","v":0},{"$f":"SUBTOTAL(109,Травень[Понаднормові])","v":0},{"$f":"SUBTOTAL(109,Травень[Тиждень 2])","v":0},{"$f":"SUBTOTAL(109,Травень[[Понаднормові ]])","v":0},{"$f":"SUBTOTAL(109,Травень[Тиждень 3])","v":0},{"$f":"SUBTOTAL(109,Травень[[Понаднормові  ]])","v":0},{"$f":"SUBTOTAL(109,Травень[Тиждень 4])","v":0},{"$f":"SUBTOTAL(109,Травень[[Понаднормові   ]])","v":0},{"$f":"SUBTOTAL(109,Травень[Тиждень 5])","v":0},{"$f":"SUBTOTAL(109,Травень[[Понаднормові    ]])","v":0}]
[null,"Трав., підсумок: планові",{"$f":"SUM(Травень[[#Totals],[Тиждень 1]],Травень[[#Totals],[Тиждень 2]],Травень[[#Totals],[Тиждень 3]],Травень[[#Totals],[Тиждень 4]],Травень[[#Totals],[Тиждень 5]])","v":0},"Трав., підсумок: понаднормові",null,{"$f":"SUM(Травень[[#Totals],[Понаднормові]],Травень[[#Totals],[Понаднормові ]],Травень[[#Totals],[Понаднормові  ]],Травень[[#Totals],[Понаднормові   ]],Травень[[#Totals],[Понаднормові    ]])","v":0}]
[]
[null,"Червень","Тиждень 1","Понаднормові","Тиждень 2","Понаднормові ","Тиждень 3","Понаднормові  ","Тиждень 4","Понаднормові   ","Тиждень 5","Понаднормові    "]
[null,"Понеділок"]
[null,"Вівторок"]
[null,"Середа"]
[null,"Четвер"]
[null,"П’ятниця"]
[null,"Субота"]
[null,"Неділя"]
[null,"підсумок годин за тиждень",{"$f":"SUBTOTAL(109,Червень[Тиждень 1])","v":0},{"$f":"SUBTOTAL(109,Червень[Понаднормові])","v":0},{"$f":"SUBTOTAL(109,Червень[Тиждень 2])","v":0},{"$f":"SUBTOTAL(109,Червень[[Понаднормові ]])","v":0},{"$f":"SUBTOTAL(109,Червень[Тиждень 3])","v":0},{"$f":"SUBTOTAL(109,Червень[[Понаднормові  ]])","v":0},{"$f":"SUBTOTAL(109,Червень[Тиждень 4])","v":0},{"$f":"SUBTOTAL(109,Червень[[Понаднормові   ]])","v":0},{"$f":"SUBTOTAL(109,Червень[Тиждень 5])","v":0},{"$f":"SUBTOTAL(109,Червень[[Понаднормові    ]])","v":0}]
[null,"Черв., підсумок: планові",{"$f":"SUM(Червень[[#Totals],[Тиждень 1]],Червень[[#Totals],[Тиждень 2]],Червень[[#Totals],[Тиждень 3]],Червень[[#Totals],[Тиждень 4]],Червень[[#Totals],[Тиждень 5]])","v":0},"Черв., підсумок: понаднормові",null,{"$f":"SUM(Червень[[#Totals],[Понаднормові]],Червень[[#Totals],[Понаднормові ]],Червень[[#Totals],[Понаднормові  ]],Червень[[#Totals],[Понаднормові   ]],Червень[[#Totals],[Понаднормові    ]])","v":0}]
[]
[null,"Липень, серпень, вересень      Картка обліку часу працівника: за день, за тиждень, за місяць, за рік"]
[null,"Липень","Тиждень 1","Понаднормові","Тиждень 2","Понаднормові ","Тиждень 3","Понаднормові  ","Тиждень 4","Понаднормові   ","Тиждень 5","Понаднормові    "]
[null,"Понеділок"]
[null,"Вівторок"]
[null,"Середа"]
[null,"Четвер"]
[null,"П’ятниця"]
[null,"Субота"]
[null,"Неділя"]
[null,"підсумок годин за тиждень",{"$f":"SUBTOTAL(109,Липень[Тиждень 1])","v":0},{"$f":"SUBTOTAL(109,Липень[Понаднормові])","v":0},{"$f":"SUBTOTAL(109,Липень[Тиждень 2])","v":0},{"$f":"SUBTOTAL(109,Липень[[Понаднормові ]])","v":0},{"$f":"SUBTOTAL(109,Липень[Тиждень 3])","v":0},{"$f":"SUBTOTAL(109,Липень[[Понаднормові  ]])","v":0},{"$f":"SUBTOTAL(109,Липень[Тиждень 4])","v":0},{"$f":"SUBTOTAL(109,Липень[[Понаднормові   ]])","v":0},{"$f":"SUBTOTAL(109,Липень[Тиждень 5])","v":0},{"$f":"SUBTOTAL(109,Липень[[Понаднормові    ]])","v":0}]
[null,"Лип., підсумок: планові",{"$f":"SUM(Липень[],Липень[[#Totals],[Тиждень 2]],Липень[[#Totals],[Тиждень 3]],Липень[[#Totals],[Тиждень 4]],Липень[[#Totals],[Тиждень 5]])","v":0},"Лип., підсумок: понаднормові",null,{"$f":"SUM(Липень[[#Totals],[Понаднормові]],Липень[[#Totals],[Понаднормові ]],Липень[[#Totals],[Понаднормові  ]],Липень[[#Totals],[Понаднормові   ]],Липень[[#Totals],[Понаднормові    ]])","v":0}]
[]
[null,"Серпень","Тиждень 1","Понаднормові","Тиждень 2","Понаднормові ","Тиждень 3","Понаднормові  ","Тиждень 4","Понаднормові   ","Тиждень 5","Понаднормові    "]
[null,"Понеділок"]
[null,"Вівторок"]
[null,"Середа"]
[null,"Четвер"]
[null,"П’ятниця"]
[null,"Субота"]
[null,"Неділя"]
[null,"підсумок годин за тиждень",{"$f":"SUBTOTAL(109,Серпень[Тиждень 1])","v":0},{"$f":"SUBTOTAL(109,Серпень[Понаднормові])","v":0},{"$f":"SUBTOTAL(109,Серпень[Тиждень 2])","v":0},{"$f":"SUBTOTAL(109,Серпень[[Понаднормові ]])","v":0},{"$f":"SUBTOTAL(109,Серпень[Тиждень 3])","v":0},{"$f":"SUBTOTAL(109,Серпень[[Понаднормові  ]])","v":0},{"$f":"SUBTOTAL(109,Серпень[Тиждень 4])","v":0},{"$f":"SUBTOTAL(109,Серпень[[Понаднормові   ]])","v":0},{"$f":"SUBTOTAL(109,Серпень[Тиждень 5])","v":0},{"$f":"SUBTOTAL(109,Серпень[[Понаднормові    ]])","v":0}]
[null,"Серп., підсумок: планові",{"$f":"SUM(Серпень[[#Totals],[Тиждень 1]],Серпень[[#Totals],[Тиждень 2]],Серпень[[#Totals],[Тиждень 3]],Серпень[[#Totals],[Тиждень 4]],Серпень[[#Totals],[Тиждень 5]])","v":0},"Серп., підсумок: понаднормові",null,{"$f":"SUM(Серпень[[#Totals],[Понаднормові]],Серпень[[#Totals],[Понаднормові ]],Серпень[[#Totals],[Понаднормові  ]],Серпень[[#Totals],[Понаднормові   ]],Серпень[[#Totals],[Понаднормові    ]])","v":0}]
[]
[null,"Вересень","Тиждень 1","Понаднормові","Тиждень 2","Понаднормові ","Тиждень 3","Понаднормові  ","Тиждень 4","Понаднормові   ","Тиждень 5","Понаднормові    "]
[null,"Понеділок"]
[null,"Вівторок"]
[null,"Середа"]
[null,"Четвер"]
[null,"П’ятниця"]
[null,"Субота"]
[null,"Неділя"]
[null,"підсумок годин за тиждень",{"$f":"SUBTOTAL(109,Вересень[Тиждень 1])","v":0},{"$f":"SUBTOTAL(109,Вересень[Понаднормові])","v":0},{"$f":"SUBTOTAL(109,Вересень[Тиждень 2])","v":0},{"$f":"SUBTOTAL(109,Вересень[[Понаднормові ]])","v":0},{"$f":"SUBTOTAL(109,Вересень[Тиждень 3])","v":0},{"$f":"SUBTOTAL(109,Вересень[[Понаднормові  ]])","v":0},{"$f":"SUBTOTAL(109,Вересень[Тиждень 4])","v":0},{"$f":"SUBTOTAL(109,Вересень[[Понаднормові   ]])","v":0},{"$f":"SUBTOTAL(109,Вересень[Тиждень 5])","v":0},{"$f":"SUBTOTAL(109,Вересень[[Понаднормові    ]])","v":0}]
[null,"Верес., підсумок: планові",{"$f":"SUM(Вересень[[#Totals],[Тиждень 1]],Вересень[[#Totals],[Тиждень 2]],Вересень[[#Totals],[Тиждень 3]],Вересень[[#Totals],[Тиждень 4]],Вересень[[#Totals],[Тиждень 5]])","v":0},"Верес., підсумок: понаднормові",null,{"$f":"SUM(Вересень[[#Totals],[Понаднормові]],Вересень[[#Totals],[Понаднормові ]],Вересень[[#Totals],[Понаднормові  ]],Вересень[[#Totals],[Понаднормові   ]],Вересень[[#Totals],[Понаднормові    ]])","v":0}]
[]
[null,"Жовтень, листопад, грудень      Картка обліку часу працівника: за день, за тиждень, за місяць, за рік"]
[null,"Жовтень","Тиждень 1","Понаднормові","Тиждень 2","Понаднормові ","Тиждень 3","Понаднормові  ","Тиждень 4","Понаднормові   ","Тиждень 5","Понаднормові    "]
[null,"Понеділок"]
[null,"Вівторок"]
[null,"Середа"]
[null,"Четвер"]
[null,"П’ятниця"]
[null,"Субота"]
[null,"Неділя"]
[null,"підсумок годин за тиждень",{"$f":"SUBTOTAL(109,Жовтень[Тиждень 1])","v":0},{"$f":"SUBTOTAL(109,Жовтень[Понаднормові])","v":0},{"$f":"SUBTOTAL(109,Жовтень[Тиждень 2])","v":0},{"$f":"SUBTOTAL(109,Жовтень[[Понаднормові ]])","v":0},{"$f":"SUBTOTAL(109,Жовтень[Тиждень 3])","v":0},{"$f":"SUBTOTAL(109,Жовтень[[Понаднормові  ]])","v":0},{"$f":"SUBTOTAL(109,Жовтень[Тиждень 4])","v":0},{"$f":"SUBTOTAL(109,Жовтень[[Понаднормові   ]])","v":0},{"$f":"SUBTOTAL(109,Жовтень[Тиждень 5])","v":0},{"$f":"SUBTOTAL(109,Жовтень[[Понаднормові    ]])","v":0}]
[null,"Жовт., підсумок: планові",{"$f":"SUM(Жовтень[[#Totals],[Тиждень 1]],Жовтень[[#Totals],[Тиждень 2]],Жовтень[[#Totals],[Тиждень 3]],Жовтень[[#Totals],[Тиждень 4]],Жовтень[[#Totals],[Тиждень 5]])","v":0},"Жовт., підсумок: понаднормові",null,{"$f":"SUM(Жовтень[[#Totals],[Понаднормові]],Жовтень[[#Totals],[Понаднормові ]],Жовтень[[#Totals],[Понаднормові  ]],Жовтень[[#Totals],[Понаднормові   ]],Жовтень[[#Totals],[Понаднормові    ]])","v":0}]
[]
[null,"Листопад","Тиждень 1","Понаднормові","Тиждень 2","Понаднормові ","Тиждень 3","Понаднормові  ","Тиждень 4","Понаднормові   ","Тиждень 5","Понаднормові    "]
[null,"Понеділок"]
[null,"Вівторок"]
[null,"Середа"]
[null,"Четвер"]
[null,"П’ятниця"]
[null,"Субота"]
[null,"Неділя"]
[null,"підсумок годин за тиждень",{"$f":"SUBTOTAL(109,Листопад[Тиждень 1])","v":0},{"$f":"SUBTOTAL(109,Листопад[Понаднормові])","v":0},{"$f":"SUBTOTAL(109,Листопад[Тиждень 2])","v":0},{"$f":"SUBTOTAL(109,Листопад[[Понаднормові ]])","v":0},{"$f":"SUBTOTAL(109,Листопад[Тиждень 3])","v":0},{"$f":"SUBTOTAL(109,Листопад[[Понаднормові  ]])","v":0},{"$f":"SUBTOTAL(109,Листопад[Тиждень 4])","v":0},{"$f":"SUBTOTAL(109,Листопад[[Понаднормові   ]])","v":0},{"$f":"SUBTOTAL(109,Листопад[Тиждень 5])","v":0},{"$f":"SUBTOTAL(109,Листопад[[Понаднормові    ]])","v":0}]
[null,"Лист., підсумок: планові",{"$f":"SUM(Листопад[[#Totals],[Тиждень 1]],Листопад[[#Totals],[Тиждень 2]],Листопад[[#Totals],[Тиждень 3]],Листопад[[#Totals],[Тиждень 4]],Листопад[[#Totals],[Тиждень 5]])","v":0},"Лист., підсумок: понаднормові",null,{"$f":"SUM(Листопад[[#Totals],[Понаднормові]],Листопад[[#Totals],[Понаднормові ]],Листопад[[#Totals],[Понаднормові  ]],Листопад[[#Totals],[Понаднормові   ]],Листопад[[#Totals],[Понаднормові    ]])","v":0}]
[]
[null,"Грудень","Тиждень 1","Понаднормові","Тиждень 2","Понаднормові ","Тиждень 3","Понаднормові  ","Тиждень 4","Понаднормові   ","Тиждень 5","Понаднормові    "]
[null,"Понеділок"]
[null,"Вівторок"]
[null,"Середа"]
[null,"Четвер"]
[null,"П’ятниця"]
[null,"Субота"]
[null,"Неділя"]
[null,"підсумок годин за тиждень",{"$f":"SUBTOTAL(109,Грудень[Тиждень 1])","v":0},{"$f":"SUBTOTAL(109,Грудень[Понаднормові])","v":0},{"$f":"SUBTOTAL(105,Грудень[Тиждень 2])","v":0},{"$f":"SUBTOTAL(109,Грудень[[Понаднормові ]])","v":0},{"$f":"SUBTOTAL(109,Грудень[Тиждень 3])","v":0},{"$f":"SUBTOTAL(109,Грудень[[Понаднормові  ]])","v":0},{"$f":"SUBTOTAL(109,Грудень[Тиждень 4])","v":0},{"$f":"SUBTOTAL(109,Грудень[[Понаднормові   ]])","v":0},{"$f":"SUBTOTAL(109,Грудень[Тиждень 5])","v":0},{"$f":"SUBTOTAL(109,Грудень[[Понаднормові    ]])","v":0}]
[null,"Груд., підсумок: планові",{"$f":"SUM(Грудень[[#Totals],[Тиждень 1]],Грудень[[#Totals],[Тиждень 2]],Грудень[[#Totals],[Тиждень 3]],Грудень[[#Totals],[Тиждень 4]],Грудень[[#Totals],[Тиждень 5]])","v":0},"Груд., підсумок: понаднормові",null,{"$f":"SUM(Грудень[[#Totals],[Понаднормові]],Грудень[[#Totals],[Понаднормові ]],Грудень[[#Totals],[Понаднормові  ]],Грудень[[#Totals],[Понаднормові   ]],Грудень[[#Totals],[Понаднормові    ]])","v":0}]